bitfinex-derivatives/quotes_ETHF0:USTF0_20251117
["timestamp","ask_amount","ask_price","bid_price","bid_amount"]
[1763405233923,3.7674,3053.6,3052.2,3.2078]
[1763405234123,3.7674,3053.6,3052.9,3.2078]
[1763405234722,3.77015075,3053.6,3052.9,3.2078]
[1763405235033,3.2078,3053.0,3052.2,3.2078]
[1763405235724,3.2078,3053.5,3052.8,3.2078]
[1763405236722,0.00275075,3053.6,3053.2,3.2078]
[1763405237435,3.21055075,3053.6,3052.8,3.2078]
[1763405237733,3.21055075,3053.6,3052.0,40.8]
[1763405237734,3.2078,3053.2,3051.7,0.0049157]
[1763405237916,0.00275075,3053.6,3052.0,3.2078]
[1763405237917,0.5094,3052.8,3052.0,3.2078]
[1763405238123,3.2078,3052.9,3052.4,3.2078]
[1763405238325,0.00275075,3053.6,3052.8,3.2078]
[1763405238832,0.00275075,3053.6,3053.2,3.2078]
[1763405239140,0.00275075,3053.6,3051.7,0.0049157]
[1763405239141,3.2078,3053.5,3051.7,0.0049157]
[1763405239318,3.2078,3051.9,3051.7,0.0049157]
[1763405239519,1.708,3052.4,3051.7,0.0049157]
[1763405239727,3.2078,3051.8,3051.7,0.0049157]
[1763405241028,9.2078,3051.8,3051.7,0.0049157]
[1763405241227,3.2078,3052.2,3051.7,0.0049157]
[1763405241619,3.2078,3051.8,3051.7,0.0049157]
[1763405242736,3.2078,3051.8,3050.2,0.516]
[1763405242737,6.0,3051.7,3049.8,3.2078]
[1763405243032,3.2078,3050.5,3049.2,3.4515]
[1763405243226,11.81,3052.8,3049.2,3.4515]
[1763405243227,3.2078,3050.1,3049.2,3.4515]
[1763405243631,3.21188045,3050.1,3049.2,0.2437]
[1763405243830,0.0049157,3050.0,3049.3,0.0049157]
[1763405244132,0.0049157,3050.0,3049.6,3.2078]
[1763405244326,3.2078,3050.6,3049.6,3.2078]
[1763405244929,3.2078,3050.2,3049.6,3.2078]
[1763405245329,3.2078,3049.8,3049.3,0.0049157]
[1763405245730,3.2078,3049.7,3049.3,0.0049157]
[1763405246430,3.2078,3049.8,3049.3,0.0049157]
[1763405247426,3.2114993,3050.2,3049.3,3.2127157]
[1763405248336,3.2114993,3050.2,3050.1,0.511]
[1763405248629,3.2078,3050.8,3050.1,3.7188]
[1763405249036,3.2078,3052.0,3050.7,3.2078]
[1763405249222,3.2078,3052.0,3051.0,0.0049157]
[1763405249427,3.2078,3052.0,3051.2,3.2078]
[1763405249628,0.00384225,3051.9,3051.2,3.2078]
[1763405250533,0.00384225,3051.9,3051.6,3.2078]
[1763405250730,0.00384225,3051.9,3051.6,3.21093282]
[1763405251036,3.2078,3052.9,3051.7,6.0]
[1763405251234,3.2078,3052.9,3052.2,3.2078]
[1763405251440,3.2078,3053.5,3052.6,3.2078]
[1763405251830,3.2078,3053.5,3053.0,3.2078]
[1763405252031,3.21044391,3053.5,3053.0,3.2078]
[1763405252736,0.00264391,3053.5,3053.0,3.2078]
[1763405253238,0.00264391,3053.5,3052.7,0.0049157]
[1763405253239,3.2078,3053.2,3052.7,0.0049157]
[1763405253435,0.00264391,3053.5,3052.7,3.2127157]
[1763405254740,3.21044391,3053.5,3052.7,3.2127157]
[1763405256437,3.21044391,3053.5,3052.7,0.0049157]
[1763405256438,3.2078,3053.0,3052.7,0.0049157]
[1763405257436,0.5563,3052.8,3052.7,0.0049157]
[1763405257743,0.5563,3052.8,3052.3,3.2078]
[1763405258043,3.2078,3053.0,3052.3,3.2078]
[1763405258538,0.0049157,3053.1,3052.7,3.2078]
[1763405260458,0.0049157,3053.1,3052.3,3.2127157]
[1763405262851,3.2078,3052.5,3052.3,0.0049157]
[1763405263051,3.2078,3052.5,3051.5,3.2078]
[1763405263554,3.2078,3052.0,3051.0,0.3678]
[1763405263749,3.7641,3052.0,3051.0,3.2078]
[1763405264058,3.7641,3052.0,3051.5,0.0049157]
[1763405264359,1.71629774,3053.1,3051.5,3.2127157]
[1763405264360,2.86935915,3053.0,3051.5,3.2127157]
[1763405264655,0.5563,3052.8,3052.2,3.2078]
[1763405264849,0.5563,3052.8,3052.7,3.2078]
[1763405265046,0.0049157,3053.1,3052.7,3.2078]
[1763405266051,0.5563,3052.8,3052.7,3.2078]
[1763405267543,0.5563,3052.8,3052.2,3.2078]
[1763405267747,3.2078,3052.3,3051.6,3.21093282]
[1763405267945,3.2078,3052.3,3051.5,0.0049157]
[1763405267946,3.2078,3051.9,3051.5,1.57e-05]
[1763405268151,3.2078,3051.9,3051.2,3.2078]
[1763405268351,0.5563,3052.0,3051.2,3.2078]
[1763405268962,3.2078,3051.9,3051.2,3.21034877]
[1763405269155,3.2078,3051.9,3051.2,3.21526447]
[1763405269361,3.2078,3051.8,3051.2,0.00746447]
[1763405269757,0.5563,3052.0,3051.2,0.00746447]
[1763405269955,0.5563,3052.0,3051.5,3.2078]
[1763405270162,3.2078,3051.6,3051.2,0.00746447]
[1763405270360,3.7641,3052.0,3051.2,0.00746447]
[1763405270661,3.7641,3052.0,3051.5,3.2078]
[1763405272164,0.5563,3052.0,3051.5,3.2078]
[1763405273566,3.2078,3051.9,3051.2,0.00746447]
[1763405274555,0.5563,3051.2,3050.7,3.2078]
[1763405274761,0.5563,3050.4,3050.2,3.2078]
[1763405275268,0.5563,3050.4,3049.1,40.8]
[1763405275269,0.5563,3050.4,3049.8,3.2078]
[1763405275968,3.2078,3050.3,3049.8,3.2127157]
[1763405276163,3.2078,3050.3,3049.8,0.0049157]
[1763405276463,0.5612157,3050.4,3049.8,3.2127157]
[1763405276858,0.5612157,3050.4,3050.2,3.2078]
[1763405277461,0.16734855,3050.4,3050.2,3.2078]
[1763405279157,0.0049157,3050.4,3050.2,3.2078]
[1763405279763,0.5563,3052.0,3050.3,6.0]
[1763405279764,3.2078,3051.6,3050.3,6.0]
[1763405279966,3.2078,3051.6,3050.9,3.2078]
[1763405280371,3.7679,3051.2,3050.4,3.2078]
[1763405280563,3.2078,3051.2,3050.4,3.2078]
[1763405280773,3.2078,3051.8,3050.8,3.2078]
[1763405280970,0.5563,3052.0,3051.3,3.2078]
[1763405281272,3.2078,3051.8,3051.3,3.2078]
[1763405281574,0.5563,3052.8,3051.7,3.2078]
[1763405281776,0.5563,3052.8,3052.1,3.2078]
[1763405282665,0.5563,3052.8,3052.6,3.2078]
[1763405282869,3.7679,3053.6,3052.6,3.2078]
[1763405282870,0.5601,3053.6,3052.6,3.2078]
[1763405283266,0.5601,3052.8,3052.6,3.21113285]
[1763405283574,0.5601,3052.8,3052.6,0.00333285]
[1763405283872,3.2078,3053.3,3052.6,0.00333285]
[1763405284078,0.0049157,3053.0,3052.6,0.00333285]
[1763405284469,0.0049157,3053.0,3052.9,3.2078]
[1763405284872,0.5601,3052.8,3052.6,0.00333285]
[1763405286363,0.5601,3052.8,3052.6,3.21113285]
[1763405287679,0.5601,3052.8,3052.4,0.0049157]
[1763405287869,4.959,3052.7,3052.4,0.0049157]
[1763405288068,0.5601,3052.8,3052.4,0.0049157]
[1763405288270,0.5601,3052.8,3052.6,3.2078]
[1763405289472,0.0049157,3053.0,3052.6,3.2078]
[1763405290571,0.5601,3052.8,3052.6,3.2078]
[1763405290875,0.5601,3052.8,3052.4,0.0049157]
[1763405291681,0.5601,3052.8,3052.7,3.2078]
[1763405292084,0.5601,3052.8,3052.7,3.21054002]
[1763405292285,0.0049157,3053.0,3052.7,3.21054002]
[1763405293080,0.56278936,3053.6,3052.7,3.21054002]
[1763405293277,0.5601,3052.8,3052.7,3.21054002]
[1763405293478,0.56278936,3053.6,3052.7,3.21054002]
[1763405293678,0.56278936,3053.6,3053.0,3.2078]
[1763405296083,0.56278936,3053.6,3053.1,3.2078]
[1763405296881,0.56278936,3053.6,3052.7,3.21054002]
[1763405296882,0.5601,3052.8,3052.7,3.21054002]
[1763405297074,0.56278936,3053.6,3052.7,3.21054002]
[1763405297279,0.5601,3052.8,3052.7,0.00274002]
[1763405297586,0.56278936,3053.6,3052.7,0.00274002]
[1763405297782,0.56278936,3053.6,3053.3,3.2078]
[1763405299283,0.00268936,3053.6,3053.3,3.2078]
[1763405299481,0.56428936,3053.6,3053.3,3.2078]
[1763405301581,0.00268936,3053.6,3053.3,3.2078]
[1763405303385,0.0346,3053.7,3053.3,3.2078]
[1763405303593,3.2078,3055.1,3053.4,6.0]
[1763405303783,3.2078,3055.1,3054.4,3.2078]
[1763405303978,0.5601,3055.2,3054.4,3.2078]
[1763405304293,3.2078,3054.9,3054.4,3.2078]
[1763405304788,3.2078,3054.9,3053.1,40.8]
[1763405304991,0.5616,3053.4,3053.0,3.2078]
[1763405305289,3.7694,3053.4,3051.8,3.2078]
[1763405305491,0.5616,3052.0,3051.8,3.2078]
[1763405306592,0.5616,3052.0,3051.4,3.2078]
[1763405307482,3.2078,3051.6,3050.9,3.2078]
[1763405307987,3.2078,3051.7,3050.9,3.2078]
[1763405308484,0.5666,3051.2,3050.5,4.08487231]
[1763405308684,0.5666,3051.2,3050.5,3.2078]
[1763405309290,0.56993013,3051.2,3050.5,3.21098978]
[1763405310694,0.57484583,3051.2,3050.5,3.21590548]
[1763405312403,0.00824583,3051.2,3051.0,3.2078]
[1763405312899,0.57484583,3051.2,3050.6,3.2078]
[1763405313092,3.2078,3050.8,3050.5,0.00810548]
[1763405313890,3.78264583,3051.2,3050.5,0.00810548]
[1763405314893,0.57484583,3051.2,3050.6,3.2078]
[1763405315093,0.57484583,3051.2,3051.1,3.2078]
[1763405315094,0.00824583,3051.2,3051.1,3.2078]
[1763405315295,0.5616,3052.0,3051.1,3.2078]
[1763405315794,0.5616,3052.0,3051.9,3.2078]
[1763405315992,3.7694,3052.8,3051.9,3.2078]
[1763405316190,0.5666,3052.0,3051.5,3.2078]
[1763405316793,3.2078,3051.6,3050.7,3.2078]
[1763405316994,3.7744,3051.2,3050.5,0.00810548]
[1763405318497,0.5666,3051.2,3050.7,3.2078]
[1763405319495,0.5666,3051.2,3051.1,3.2078]
[1763405319799,0.5666,3051.2,3050.5,0.00810548]
[1763405320091,3.2078,3050.6,3049.4,3.2078]
[1763405320299,3.2078,3050.2,3049.4,3.2078]
[1763405321297,3.2078,3050.6,3049.8,3.2078]
[1763405321598,3.2078,3051.0,3050.3,3.2078]
[1763405322589,0.5666,3052.0,3050.7,3.2078]
[1763405322590,3.2078,3051.8,3050.7,3.2078]
[1763405322796,0.5666,3052.0,3050.7,3.2078]
[1763405322797,3.2078,3051.4,3050.7,3.2078]
[1763405323110,3.2078,3050.9,3049.9,3.2078]
[1763405323399,0.0049157,3050.7,3049.9,3.2078]
[1763405323907,0.007524,3050.7,3050.3,3.2078]
[1763405324693,0.007524,3050.7,3050.4,0.4826]
[1763405325796,0.007524,3050.7,3050.3,3.2078]
[1763405326803,3.2078,3050.4,3050.2,0.0049157]
[1763405327195,0.007524,3050.7,3050.2,0.0049157]
[1763405327898,0.007524,3050.7,3050.2,3.2127157]
[1763405328598,0.007524,3050.7,3050.6,3.2078]
[1763405328992,3.2078,3051.6,3050.6,3.2078]
[1763405329599,3.2078,3051.6,3051.0,3.2078]
[1763405329801,3.2078,3052.0,3051.1,3.2078]
[1763405330197,3.2078,3052.0,3051.2,0.4826]
[1763405330502,3.2078,3052.0,3051.5,3.2078]
[1763405330707,3.2078,3052.0,3051.2,0.4826]
[1763405330898,3.7744,3052.0,3051.1,3.2078]
[1763405331089,3.2078,3051.5,3050.6,3.2078]
[1763405332701,3.2078,3051.3,3050.6,3.2078]
[1763405333002,0.00293512,3051.3,3050.6,3.2078]
[1763405334311,3.2078,3051.4,3050.6,4.08487231]
[1763405335210,0.5666,3051.3,3050.6,4.08487231]
[1763405335405,3.2078,3051.4,3050.6,3.2078]
[1763405335708,3.2078,3051.4,3050.6,4.08487231]
[1763405336301,3.2078,3051.4,3050.7,0.87707231]
[1763405336502,3.21115666,3051.4,3050.7,0.87707231]
[1763405337810,3.21115666,3051.4,3050.6,4.08487231]
[1763405338002,3.21115666,3051.4,3050.7,0.87707231]
[1763405339109,0.5353,3051.3,3050.7,0.87707231]
[1763405339515,0.5353,3051.3,3050.8,0.87707231]
[1763405340406,0.5353,3051.3,3050.7,0.87707231]
[1763405341407,3.2078,3051.2,3050.7,0.87707231]
[1763405341717,3.2078,3051.2,3050.2,3.2127157]
[1763405341718,3.2078,3051.2,3050.8,0.87707231]
[1763405342312,0.00335666,3051.4,3050.6,3.2078]
[1763405342313,0.00335666,3051.4,3050.9,0.87707231]
[1763405342511,3.2078,3051.2,3050.9,0.87707231]
[1763405343312,3.2078,3051.2,3051.0,0.87707231]
[1763405343605,0.00335666,3051.4,3051.0,3.2078]
[1763405343813,0.90225666,3051.4,3051.3,0.88209556]
[1763405344106,0.8989,3051.2,3050.5,4.39310839]
[1763405344319,0.5353,3050.6,3050.2,0.0049157]
[1763405344503,3.2078,3050.3,3048.7,1.81076399]
[1763405344707,3.2078,3049.5,3048.8,3.2078]
[1763405344906,3.7431,3049.9,3048.8,3.2078]
[1763405345107,3.7431,3049.2,3048.8,3.2078]
[1763405345315,3.7431,3049.2,3048.7,0.0328014]
[1763405345505,3.2078,3048.8,3047.8,3.2078]
[1763405345711,0.53805056,3049.2,3048.7,0.0039531]
[1763405346523,0.00275056,3049.2,3048.9,3.2078]
[1763405346708,3.2078,3051.0,3048.9,3.2078]
[1763405346909,3.2078,3051.0,3050.4,3.2078]
[1763405347107,3.2078,3051.0,3050.0,3.2078]
[1763405347310,3.2078,3050.6,3049.6,3.2078]
[1763405347720,3.21014465,3050.6,3049.8,0.0049157]
[1763405347920,3.2078,3050.1,3049.8,0.0049157]
[1763405348315,3.2078,3050.3,3049.8,0.0049157]
[1763405348517,0.00234465,3050.6,3049.8,0.0049157]
[1763405349223,3.2078,3050.4,3049.8,0.0049157]
[1763405349417,0.00234465,3050.6,3049.8,0.0049157]
[1763405349614,3.2078,3050.4,3049.8,0.0049157]
[1763405349819,3.7431,3050.4,3049.8,0.0049157]
[1763405350016,3.2078,3050.0,3049.2,3.2078]
[1763405350214,0.5353,3050.4,3049.2,3.2078]
[1763405350215,3.2078,3049.6,3049.2,3.2078]
[1763405350417,3.2078,3050.3,3049.2,3.2078]
[1763405350726,3.2078,3050.3,3049.7,3.2078]
[1763405350909,3.2127157,3050.3,3049.7,3.2127157]
[1763405351114,0.0049157,3050.3,3050.1,3.2078]
[1763405352617,0.0049157,3050.3,3049.7,3.2127157]
[1763405352815,3.2078,3050.2,3049.7,3.2127157]
[1763405353022,3.2078,3049.8,3049.1,3.2078]
[1763405353226,0.5353,3049.6,3049.1,3.2078]
[1763405353619,3.2078,3049.8,3049.1,3.2078]
[1763405353933,3.2127157,3050.3,3049.1,3.2078]
[1763405354137,3.2127157,3050.3,3049.1,3.2127157]
[1763405354334,3.2078,3049.8,3049.1,3.2127157]
[1763405354631,0.0049157,3050.3,3049.1,3.2127157]
[1763405354632,3.2078,3050.2,3049.1,3.2127157]
[1763405355229,3.2078,3049.8,3049.1,3.2127157]
[1763405355432,3.2078,3049.2,3048.7,0.0039531]
[1763405355631,0.5353,3049.6,3047.1,3.4690479]
[1763405355632,3.2078,3048.8,3047.1,3.4690479]
[1763405355835,3.2078,3048.4,3047.1,3.4690479]
[1763405356232,3.2078,3047.9,3047.1,3.2078]
[1763405356440,3.2127157,3047.9,3047.2,0.4875157]
[1763405356831,3.21538368,3047.9,3047.2,0.49170938]
[1763405357032,0.00758368,3047.9,3047.2,0.49170938]
[1763405357434,0.00758368,3047.9,3047.6,3.2078]
[1763405357631,3.2078,3049.9,3047.6,3.2078]
[1763405357835,3.2078,3049.9,3047.2,0.49170938]
[1763405357836,3.2078,3049.9,3048.9,3.2078]
[1763405358138,3.2078,3049.5,3048.8,0.5325]
[1763405358437,3.2078,3049.1,3048.0,0.5325]
[1763405358633,0.0049157,3048.9,3048.2,0.0049157]
[1763405359633,0.0049157,3048.9,3048.3,3.2078]
[1763405359832,0.0049157,3048.9,3048.2,0.0049157]
[1763405359833,3.2078,3048.6,3048.2,0.0049157]
[1763405360339,0.0049157,3048.9,3048.2,0.0049157]
[1763405360532,0.0049157,3048.9,3048.8,0.5325]
[1763405361037,0.0049157,3048.9,3048.8,3.7403]
[1763405361237,0.0049157,3048.9,3048.8,0.5325]
[1763405361442,0.0049157,3048.9,3048.4,3.2078]
[1763405361637,0.0049157,3048.9,3048.2,0.0049157]
[1763405361844,3.2078,3048.6,3048.2,0.0049157]
[1763405362040,3.2078,3048.6,3047.5,3.2078]
[1763405362340,3.2078,3048.2,3047.5,3.2078]
[1763405362835,3.2078,3047.8,3047.1,3.2078]
[1763405363041,3.2078,3047.3,3047.2,0.00910938]
[1763405363944,0.0049157,3048.9,3047.2,0.00910938]
[1763405363945,3.2078,3047.8,3047.2,0.00910938]
[1763405364833,0.0049157,3048.9,3047.2,0.00910938]
[1763405365033,3.2078,3047.8,3047.2,0.00910938]
[1763405365233,3.2078,3047.4,3047.2,0.00144312]
[1763405365438,3.2078,3047.4,3046.0,3.2078]
[1763405365635,3.2078,3046.5,3045.6,0.5325]
[1763405366237,3.2078,3046.5,3046.0,3.2078]
[1763405366439,0.0030581,3046.5,3046.0,3.2078]
[1763405366642,3.2078,3046.2,3045.7,0.0049244]
[1763405367842,0.0049244,3046.3,3045.7,0.0049244]
[1763405368449,3.2078,3045.8,3043.7,5.00148307]
[1763405368747,3.2078,3044.7,3043.7,3.24065529]
[1763405368937,3.2078,3044.6,3043.7,3.24065529]
[1763405369449,3.2127244,3044.6,3044.1,3.2078]
[1763405369846,0.0049244,3044.6,3044.1,3.2078]
[1763405370645,0.0049244,3044.6,3044.0,0.54069326]
[1763405371951,0.0049244,3044.6,3044.3,3.2078]
[1763405372248,3.2078,3044.7,3044.0,0.54069326]
[1763405372549,3.2078,3045.1,3044.0,0.54069326]
[1763405372745,3.2078,3045.1,3044.3,3.2078]
[1763405373143,0.0049244,3045.0,3044.3,3.2078]
[1763405373547,0.0049244,3045.0,3044.7,3.7084]
[1763405374551,3.2078,3045.8,3045.6,0.5006]
[1763405374742,3.2078,3046.2,3045.6,0.5006]
[1763405375443,3.2078,3045.8,3044.9,3.2078]
[1763405375637,3.2127244,3046.2,3045.6,0.0049244]
[1763405375838,3.2078,3045.7,3045.6,0.0049244]
[1763405376041,0.0049244,3046.2,3045.6,0.0049244]
[1763405376042,3.2078,3045.8,3045.6,0.0049244]
[1763405376440,3.2078,3045.8,3045.6,2.44e-05]
[1763405376740,9.2078,3045.8,3045.6,2.44e-05]
[1763405376939,6.0,3045.7,3045.6,2.44e-05]
[1763405377752,3.2078,3045.8,3045.6,2.44e-05]
[1763405380047,3.2078,3045.8,3044.0,3.74356886]
[1763405380249,3.2078,3044.7,3044.0,3.74356886]
[1763405380554,3.2078,3045.6,3044.5,3.2078]
[1763405380755,3.2078,3045.9,3045.1,3.2078]
[1763405381055,0.0049244,3045.8,3045.6,3.7084]
[1763405381253,0.0049244,3045.8,3045.6,0.5006]
[1763405381648,0.0049244,3045.8,3045.2,3.2127244]
[1763405382559,0.0049244,3045.8,3045.6,0.5006]
[1763405385750,0.0049244,3045.8,3045.2,3.2127244]
[1763405385950,0.0049244,3045.8,3045.6,3.7084]
[1763405387951,3.2108581,3046.5,3046.4,0.5006]
[1763405388156,3.2108581,3046.5,3046.4,0.50326319]
[1763405388157,0.0030581,3046.5,3046.4,0.50326319]
[1763405388354,3.2108581,3046.5,3046.4,0.00266319]
[1763405392569,9.2108581,3046.5,3045.6,3.2078]
[1763405392767,3.2078,3046.0,3045.6,3.2078]
[1763405393065,3.2108581,3046.5,3045.7,0.5006]
[1763405393265,3.2078,3046.1,3045.7,0.5006]
[1763405393454,3.2078,3046.1,3045.7,0.50351008]
[1763405393860,3.2108581,3046.5,3045.7,0.50351008]
[1763405395563,3.2078,3046.1,3045.7,0.50351008]
[1763405395765,3.2108581,3046.5,3045.7,3.71131008]
[1763405395965,3.2108581,3046.5,3045.7,0.50351008]
[1763405396567,0.3332,3045.8,3045.7,0.00291008]
[1763405397172,3.2078,3046.1,3045.7,0.45821008]
[1763405398359,3.2108581,3046.5,3045.7,0.45821008]
[1763405398560,3.2078,3046.1,3045.7,0.45821008]
[1763405400168,0.0030581,3046.5,3045.9,3.2078]
[1763405400363,0.0030581,3046.5,3046.2,0.4553]
[1763405400869,0.0030581,3046.5,3046.4,0.7725]
[1763405401064,1.71138204,3047.9,3046.4,0.7725]
[1763405401065,3.2078,3047.5,3046.8,0.4553]
[1763405401372,3.2078,3048.6,3047.8,0.4553]
[1763405401675,3.2078,3049.0,3048.5,0.4553]
[1763405401870,3.2078,3048.6,3047.1,1.16063364]
[1763405402070,3.2078,3047.9,3047.5,0.0049244]
[1763405402272,0.00491865,3048.2,3047.5,3.2127244]
[1763405402568,0.00491865,3048.2,3047.9,3.2078]
[1763405402873,3.2078,3048.5,3047.9,3.2078]
[1763405403261,3.2078,3048.1,3047.8,0.4553]
[1763405403467,3.2078,3048.5,3047.8,0.4553]
[1763405403666,3.2078,3048.0,3047.8,0.4553]
[1763405404072,3.2078,3048.4,3047.8,0.4553]
[1763405404378,3.2078,3048.4,3048.0,3.2078]
[1763405404678,3.2078,3048.3,3047.8,0.4553]
[1763405405175,0.00259939,3048.6,3048.5,0.4553]
[1763405405578,0.00259939,3048.6,3047.8,0.4553]
[1763405405879,0.00259939,3048.6,3048.5,0.4553]
[1763405406080,0.00259939,3048.6,3047.8,0.4553]
[1763405406273,3.2078,3048.3,3047.8,0.4553]
[1763405406576,3.2078,3048.3,3047.5,0.0049244]
[1763405406782,0.00259939,3048.6,3047.5,0.0049244]
[1763405406783,3.2078,3048.1,3047.5,0.0049244]
[1763405407885,3.2078,3048.5,3047.5,0.0049244]
[1763405408069,3.2078,3048.1,3047.5,0.0049244]
[1763405409280,3.2078,3047.6,3046.8,3.6631]
[1763405409582,3.2078,3047.6,3045.8,1.76082778]
[1763405409583,3.2078,3047.2,3045.9,3.2078]
[1763405409787,3.2078,3046.6,3045.9,3.2078]
[1763405410081,3.2078,3046.2,3045.5,3.2078]
[1763405410489,3.21023284,3046.2,3045.6,0.0049244]
[1763405411169,0.00243284,3046.2,3045.7,0.4553]
[1763405412280,0.00243284,3046.2,3046.1,3.2078]
[1763405412581,0.00243284,3046.2,3045.7,3.6631]
[1763405413979,0.00243284,3046.2,3045.7,0.4553]
[1763405414288,0.00243284,3046.2,3045.8,3.2078]
[1763405416981,0.00243284,3046.2,3045.6,0.0049244]
[1763405417196,0.00243284,3046.2,3045.7,0.4553]
[1763405417690,0.00243284,3046.2,3045.9,3.2078]
[1763405418481,0.00243284,3046.2,3045.7,0.4553]
[1763405420289,0.00243284,3046.2,3046.1,3.2078]
[1763405420881,3.2078,3047.3,3046.4,0.4648]
[1763405421276,3.2078,3046.9,3046.4,0.4648]
[1763405421792,0.0039518,3046.9,3046.4,0.4648]
[1763405421985,0.0039518,3046.9,3046.1,3.2078]
[1763405422286,3.2078,3046.3,3045.6,3.2127244]
[1763405422486,3.2078,3046.3,3045.7,0.4648]
[1763405422687,3.2078,3046.6,3045.7,3.6726]
[1763405424287,0.0039518,3046.9,3045.7,3.6726]
[1763405424489,0.0039518,3046.9,3046.1,3.2078]
[1763405424895,0.0039518,3046.9,3045.7,0.4648]
[1763405424896,0.0039518,3046.9,3046.4,0.4648]
[1763405426788,0.0039518,3046.9,3046.6,3.2078]
[1763405426989,0.0039518,3046.9,3046.4,0.4648]
[1763405427391,3.2078,3047.6,3046.5,3.2078]
[1763405427602,3.2078,3048.1,3047.3,3.2078]
[1763405427790,3.2078,3048.1,3047.4,0.0049244]
[1763405428095,3.2078,3047.7,3047.4,0.0049244]
[1763405428591,3.21177581,3047.7,3047.4,0.0049244]
[1763405428790,0.00397581,3047.7,3047.4,0.0049244]
[1763405429281,0.00397581,3047.7,3047.4,3.2127244]
[1763405429482,3.2078,3048.2,3047.4,3.2127244]
[1763405430390,3.21061559,3048.2,3047.4,3.2127244]
[1763405431591,0.00281559,3048.2,3047.4,3.2127244]
[1763405431991,0.00281559,3048.2,3047.4,4.09231817]
[1763405432791,0.00281559,3048.2,3047.8,0.4508]
[1763405433095,0.00281559,3048.2,3047.8,0.45481905]
[1763405433293,0.00281559,3048.2,3047.8,3.66261905]
[1763405433694,0.00281559,3048.2,3048.1,0.7472]
[1763405435903,0.3933,3047.9,3047.8,3.21181905]
[1763405436204,0.00281559,3048.2,3047.8,0.45481905]
[1763405436403,3.2078,3048.1,3047.8,0.45481905]
[1763405436700,0.00281559,3048.2,3047.8,0.45481905]
[1763405436906,0.00281559,3048.2,3048.0,3.2078]
[1763405439495,0.00281559,3048.2,3048.1,0.7472]
[1763405439700,0.00281559,3048.2,3047.8,0.45481905]
[1763405441207,0.00281559,3048.2,3048.1,0.7472]
[1763405442092,0.00281559,3048.2,3047.8,0.45481905]
[1763405442289,0.00281559,3048.2,3047.8,1.20201905]
[1763405442290,3.2078,3047.9,3047.8,1.20201905]
[1763405442489,3.2078,3047.9,3047.4,0.4557244]
[1763405442490,3.6011,3047.9,3047.4,0.0049244]
[1763405442902,0.3933,3047.5,3047.4,0.0049244]
[1763405443405,3.2078,3047.5,3047.4,0.00903658]
[1763405443606,3.2078,3047.9,3046.8,3.6586]
[1763405443898,3.2078,3047.9,3047.2,3.2078]
[1763405444302,0.00281559,3048.2,3047.2,3.2078]
[1763405444501,0.00281559,3048.2,3047.8,0.4508]
[1763405444502,0.0049244,3048.0,3047.8,0.4508]
[1763405444901,0.0049244,3048.0,3047.4,0.0049244]
[1763405447710,0.0049244,3048.0,3047.6,3.2078]
[1763405448095,0.0049244,3048.0,3047.8,0.4508]
[1763405449202,0.0049244,3048.0,3047.9,0.7472]
[1763405450095,0.0049244,3048.0,3047.8,0.4508]
[1763405451101,0.0049244,3048.0,3047.6,3.2078]
[1763405451610,0.0049244,3048.0,3047.4,0.0049244]
[1763405451611,0.0049244,3048.0,3047.4,0.4557244]
[1763405452305,0.0049244,3048.0,3047.6,3.2078]
[1763405452899,0.0049244,3048.0,3047.9,0.7472]
[1763405453501,0.0049244,3048.0,3047.6,3.2078]
[1763405454005,3.2078,3049.1,3048.6,0.4508]
[1763405454204,3.6011,3048.7,3048.0,0.4508]
[1763405454611,0.3933,3048.1,3047.6,3.2078]
[1763405455110,3.6048166,3048.1,3047.6,3.2078]
[1763405455305,0.3970166,3048.1,3047.6,3.2078]
[1763405455612,0.0037166,3048.1,3047.6,3.2078]
[1763405456211,0.3933,3047.7,3047.6,3.2078]
[1763405456410,0.0037166,3048.1,3047.5,0.0049244]
[1763405458004,0.0037166,3048.1,3048.0,1.0283]
[1763405458199,0.0037166,3048.1,3048.0,4.2361]
[1763405458514,0.0037166,3048.1,3048.0,1.0283]
[1763405458809,0.0037166,3048.1,3048.0,4.2361]
[1763405458810,1.66e-05,3048.1,3048.0,4.2361]
[1763405459608,1.66e-05,3048.1,3048.0,5.39673364]
[1763405459915,3.2078,3048.8,3048.0,4.76123364]
[1763405460311,3.2078,3048.8,3048.0,0.3928]
[1763405460705,3.2078,3048.4,3048.0,0.3928]
[1763405461109,3.21075953,3048.8,3048.0,0.3928]
[1763405461312,3.2078,3048.4,3048.0,0.3928]
[1763405461514,0.1827,3048.1,3047.6,4.36843364]
[1763405461716,3.2078,3048.4,3048.0,0.3928]
[1763405462007,3.2078,3048.4,3047.5,0.0049244]
[1763405462008,0.1827,3048.1,3047.5,0.0049244]
[1763405462210,3.3905,3047.6,3047.5,0.0049244]
[1763405462511,0.1752,3047.1,3046.4,3.2078]
[1763405463007,3.2078,3047.2,3046.8,0.3928]
[1763405463405,3.2078,3047.2,3046.7,0.0049244]
[1763405463615,0.1752,3046.5,3046.4,3.2078]
[1763405463916,3.2078,3046.8,3046.4,3.2078]
[1763405464215,3.2078,3047.2,3046.5,3.2078]
[1763405464617,3.21051888,3047.2,3046.8,0.3928]
[1763405465117,3.21051888,3047.2,3046.5,0.00868196]
[1763405465412,3.2078,3046.8,3046.5,0.00868196]
[1763405465901,0.1752,3046.6,3046.5,0.00868196]
[1763405466308,3.2078,3046.9,3046.5,0.00868196]
[1763405466515,0.1752,3046.6,3046.5,0.00868196]
[1763405467616,3.2078,3046.9,3046.5,0.00868196]
[1763405468014,0.00271888,3047.2,3046.5,0.00868196]
[1763405468319,3.2078,3046.8,3046.5,0.00868196]
[1763405468521,3.21051888,3047.2,3046.5,0.00868196]
[1763405469423,3.383,3046.6,3046.5,0.00868196]
[1763405469811,3.2078,3046.6,3046.5,0.00868196]
[1763405470016,3.2078,3047.1,3046.5,0.64418196]
[1763405470322,0.00271888,3047.2,3046.8,0.3928]
[1763405470706,3.2078,3047.0,3046.8,0.3928]
[1763405470914,3.2078,3047.0,3046.5,0.00868196]